[Event "44th Chess Olympiad Open 2022"]
[Site "Chennai"]
[Date "2022.08.02"]
[Round "5.34"]
[White "Mushore, Emarald Takudzwa"]
[Black "Murphy, Conor E"]
[Result "0-1"]
[WhiteElo "2153"]
[BlackElo "2404"]
[Annotator "RC"]
[PlyCount "74"]
[EventDate "2022.??.??"]
[TimeControl "60"]

1. e4 {[%emt 0:00:11]} e5 {[%emt 0:00:13]} 2. Nf3 {[%emt 0:00:07]} Nc6 {
[%emt 0:00:15]} 3. Bc4 {[%emt 0:00:13]} Nf6 {[%emt 0:00:27]} 4. d3 {[%emt 0:00:
00]} Bc5 {[%emt 0:00:28]} 5. c3 {[%emt 0:00:23]} a6 {[%emt 0:01:14]} 6. O-O {
[%emt 0:00:38]} d6 {[%emt 0:00:59]} 7. Bb3 {[%emt 0:00:09]} Ba7 {[%emt 0:00:38]
} 8. Nbd2 {[%emt 0:00:51]} O-O {[%emt 0:00:56]} 9. h3 {[%emt 0:00:21]} h6 {
[%emt 0:00:31]} 10. Re1 {[%emt 0:01:10]} Re8 {[%emt 0:00:20]} 11. Nf1 {[%emt 0:
00:00]} Be6 {[%emt 0:00:29]} 12. Bc2 {[%emt 0:00:41]} d5 {[%emt 0:01:38]} 13.
exd5 {[%emt 0:00:27]} Bxd5 {[%emt 0:01:01]} 14. Ng3 {[%emt 0:00:18]} Re6 {
[%emt 0:03:45]} 15. Qe2 {[%emt 0:10:20]} Qd7 {[%emt 0:07:12]} 16. Be3 {[%emt 0:
00:00]} Nd4 {[%emt 0:10:26]} 17. Bxd4 {[%emt 0:08:07]} exd4 {[%emt 0:01:12]}
18. Qd1 {[%emt 0:10:43]} Rxe1+ {[%emt 0:08:01]} 19. Nxe1 {[%emt 0:00:18]} Re8 {
[%emt 0:01:49]} 20. c4 {[%emt 0:03:34]} Be6 {[%emt 0:06:22]} 21. Nf3 {[%emt 0:
00:00]} c5 {[%emt 0:03:00]} 22. Nd2 {[%emt 0:06:25]} Bb8 {[%emt 0:03:08]} 23.
Qf3 {[%emt 0:05:26]} Bxg3 {[%emt 0:05:32]} 24. Qxg3 {[%emt 0:00:19]} Bf5 {
[%emt 0:00:33]} 25. Qf3 {[%emt 0:00:43]} Bg6 {[%emt 0:12:58]} 26. Rd1 {[%emt 0:
00:00]} Bh5 {[%emt 0:03:00]} 27. g4 {[%emt 0:01:22]} Nxg4 {[%emt 0:04:52]} 28.
Ne4 {[%emt 0:00:27]} Rxe4 {[%emt 0:01:41]} 29. dxe4 {[%emt 0:07:00]} Nf6 {
[%emt 0:00:11]} 30. Qf4 {[%emt 0:01:30]} Bxd1 {[%emt 0:00:38]} 31. Bxd1 {
[%emt 0:00:15]} Qe6 {[%emt 0:14:24]} 32. Bf3 {[%emt 0:07:28]} g5 {[%emt 0:00:
00]} 33. Qb8+ {[%emt 0:01:00]} Kg7 {[%emt 0:00:15]} 34. e5 {[%emt 0:12:29]} Nd7
{[%emt 0:00:47]} 35. Qxb7 {[%emt 0:00:32]} Nxe5 {[%emt 0:00:52]} 36. Bd5 {
[%emt 0:04:51]} Qxh3 {[%emt 0:01:34]} 37. Bg2 {[%emt 0:05:43]} Qe6 {[%emt 0:00:
00]} 0-1

[Event "44th Chess Olympiad Open 2022"]
[Site "Chennai"]
[Date "2022.08.02"]
[Round "5.34"]
[White "Mwadzura, Roy"]
[Black "Heidenfeld, Mark"]
[Result "0-1"]
[WhiteElo "2093"]
[BlackElo "2355"]
[Annotator "RC"]
[PlyCount "44"]
[EventDate "2022.??.??"]
[TimeControl "60"]

1. e4 {[%emt 0:00:23]} e5 {[%emt 0:00:21]} 2. Nf3 {[%emt 0:00:13]} Nc6 {
[%emt 0:00:11]} 3. Bc4 {[%emt 0:00:30]} Be7 {[%emt 0:00:52]} 4. c3 {[%emt 0:00:
00]} Nf6 {[%emt 0:00:51]} 5. d3 {[%emt 0:00:32]} O-O {[%emt 0:01:39]} 6. Nbd2 {
[%emt 0:00:44]} d6 {[%emt 0:07:43]} 7. Bb3 {[%emt 0:01:57]} Na5 {[%emt 0:03:36]
} 8. Bc2 {[%emt 0:00:08]} c5 {[%emt 0:00:28]} 9. h3 {[%emt 0:06:00]} Re8 {
[%emt 0:03:23]} 10. O-O {[%emt 0:07:29]} Bf8 {[%emt 0:01:19]} 11. Re1 {[%emt 0:
00:00]} h6 {[%emt 0:02:32]} 12. Nf1 {[%emt 0:00:24]} Nc6 {[%emt 0:00:52]} 13.
d4 {[%emt 0:09:44]} cxd4 {[%emt 0:26:20]} 14. cxd4 {[%emt 0:00:46]} Bd7 {
[%emt 0:00:42]} 15. Ng3 {[%emt 0:05:55]} Rc8 {[%emt 0:04:50]} 16. Be3 {[%emt 0:
00:00]} exd4 {[%emt 0:03:28]} 17. Nxd4 {[%emt 0:00:36]} d5 {[%emt 0:01:37]} 18.
exd5 {[%emt 0:02:36]} Nxd4 {[%emt 0:00:35]} 19. Qxd4 {[%emt 0:11:42]} Rxc2 {
[%emt 0:00:24]} 20. Qxa7 {[%emt 0:00:05]} Nxd5 {[%emt 0:01:34]} 21. Bd4 {
[%emt 0:01:50]} Bc6 {[%emt 0:02:03]} 22. Red1 {[%emt 0:06:31]} Qg5 {[%emt 0:00:
00]} 0-1

[Event "44th Chess Olympiad Open 2022"]
[Site "Chennai"]
[Date "2022.08.02"]
[Round "5.35"]
[White "Nielsen, Hogni Egilstoft"]
[Black "El Jawich, Amro"]
[Result "1/2-1/2"]
[WhiteElo "2414"]
[BlackElo "2314"]
[Annotator "RC"]
[PlyCount "65"]
[EventDate "2022.??.??"]
[TimeControl "60"]

1. e4 {[%emt 0:00:06]} c5 {[%emt 0:00:11]} 2. Nf3 {[%emt 0:00:15]} Nf6 {
[%emt 0:00:14]} 3. e5 {[%emt 0:02:35]} Nd5 {[%emt 0:00:09]} 4. Nc3 {[%emt 0:00:
00]} e6 {[%emt 0:00:27]} 5. g3 {[%emt 0:06:28]} Nxc3 {[%emt 0:06:16]} 6. dxc3 {
[%emt 0:01:01]} b6 {[%emt 0:04:22]} 7. Bg2 {[%emt 0:02:53]} Bb7 {[%emt 0:00:31]
} 8. Bf4 {[%emt 0:01:49]} Qc7 {[%emt 0:06:01]} 9. Qd2 {[%emt 0:24:18]} h6 {
[%emt 0:01:38]} 10. h4 {[%emt 0:00:44]} Nc6 {[%emt 0:06:59]} 11. h5 {[%emt 0:
00:00]} Be7 {[%emt 0:03:01]} 12. O-O-O {[%emt 0:03:10]} b5 {[%emt 0:08:23]} 13.
Kb1 {[%emt 0:09:40]} Rb8 {[%emt 0:07:14]} 14. g4 {[%emt 0:03:31]} b4 {[%emt 0:
00:00]} 15. c4 {[%emt 0:04:29]} Bc8 {[%emt 0:06:02]} 16. Qe3 {[%emt 0:02:39]}
Rb6 {[%emt 0:08:57]} 17. g5 {[%emt 0:03:47]} hxg5 {[%emt 0:06:32]} 18. Bxg5 {
[%emt 0:01:15]} Ra6 {[%emt 0:01:52]} 19. h6 {[%emt 0:04:22]} gxh6 {[%emt 0:00:
00]} 20. Rxh6 {[%emt 0:05:42]} Rxh6 {[%emt 0:01:24]} 21. Bxh6 {[%emt 0:00:05]}
Qa5 {[%emt 0:01:26]} 22. Qb3 {[%emt 0:00:07]} Bb7 {[%emt 0:05:49]} 23. Bg7 {
[%emt 0:02:33]} Kd8 {[%emt 0:01:30]} 24. Bf6 {[%emt 0:03:19]} Kc7 {[%emt 0:00:
00]} 25. Bf1 {[%emt 0:02:21]} Bxf6 {[%emt 0:03:28]} 26. exf6 {[%emt 0:00:02]}
d6 {[%emt 0:02:18]} 27. Bd3 {[%emt 0:00:31]} Nd8 {[%emt 0:00:40]} 28. Ng5 {
[%emt 0:00:35]} Bc6 {[%emt 0:00:24]} 29. Be4 {[%emt 0:01:36]} Ba4 {[%emt 0:00:
00]} 30. Qe3 {[%emt 0:00:48]} Bd7 {[%emt 0:03:02]} 31. Qb3 {[%emt 0:00:03]} Ba4
{[%emt 0:01:04]} 32. Qe3 {[%emt 0:00:24]} Bd7 {[%emt 0:00:45]} 33. Qb3 {
[%emt 0:00:52]} 1/2-1/2

[Event "44th Chess Olympiad Open 2022"]
[Site "Chennai"]
[Date "2022.08.02"]
[Round "5.35"]
[White "Apol, Luitjen Akselsson"]
[Black "Khoder, Akram"]
[Result "0-1"]
[WhiteElo "2289"]
[BlackElo "2038"]
[Annotator "RC"]
[PlyCount "132"]
[EventDate "2022.??.??"]
[TimeControl "60"]

1. e4 {[%emt 0:00:12]} c5 {[%emt 0:00:10]} 2. Nf3 {[%emt 0:00:33]} e6 {[%emt 0:
00:00]} 3. g3 {[%emt 0:00:55]} d5 {[%emt 0:00:14]} 4. exd5 {[%emt 0:00:18]}
exd5 {[%emt 0:00:05]} 5. d4 {[%emt 0:00:37]} Nf6 {[%emt 0:04:48]} 6. Bg2 {
[%emt 0:00:40]} Be7 {[%emt 0:00:06]} 7. O-O {[%emt 0:00:46]} O-O {[%emt 0:00:
00]} 8. Be3 {[%emt 0:00:37]} Ng4 {[%emt 0:00:28]} 9. Bf4 {[%emt 0:00:46]} Nc6 {
[%emt 0:00:13]} 10. Nc3 {[%emt 0:04:33]} Be6 {[%emt 0:00:34]} 11. h3 {[%emt 0:
00:00]} Nf6 {[%emt 0:00:23]} 12. Re1 {[%emt 0:00:09]} Qd7 {[%emt 0:00:44]} 13.
Kh2 {[%emt 0:00:49]} Rfe8 {[%emt 0:01:09]} 14. a3 {[%emt 0:02:22]} Rac8 {
[%emt 0:16:22]} 15. Be3 {[%emt 0:21:26]} b6 {[%emt 0:10:52]} 16. Ne5 {[%emt 0:
00:00]} Qd8 {[%emt 0:10:06]} 17. Nxc6 {[%emt 0:05:49]} Rxc6 {[%emt 0:00:13]}
18. Ne2 {[%emt 0:00:04]} Bf5 {[%emt 0:14:34]} 19. c4 {[%emt 0:11:50]} Be4 {
[%emt 0:05:15]} 20. Qa4 {[%emt 0:01:01]} Rc7 {[%emt 0:11:29]} 21. Bxe4 {
[%emt 0:03:17]} dxe4 {[%emt 0:03:42]} 22. Rad1 {[%emt 0:02:05]} cxd4 {[%emt 0:
00:00]} 23. Rxd4 {[%emt 0:01:12]} Qc8 {[%emt 0:00:14]} 24. Bf4 {[%emt 0:01:03]}
Rc5 {[%emt 0:00:59]} 25. Nc3 {[%emt 0:02:20]} Rh5 {[%emt 0:00:47]} 26. h4 {
[%emt 0:00:21]} Bc5 {[%emt 0:00:35]} 27. Nxe4 {[%emt 0:00:10]} Ng4+ {[%emt 0:
00:00]} 28. Kg2 {[%emt 0:02:44]} Bxd4 {[%emt 0:00:18]} 29. f3 {[%emt 0:00:05]}
Qa8 {[%emt 0:09:37]} 30. Qd7 {[%emt 0:01:33]} Ne3+ {[%emt 0:02:07]} 31. Bxe3 {
[%emt 0:01:47]} Bxe3 {[%emt 0:00:15]} 32. Rxe3 {[%emt 0:01:19]} Rhe5 {[%emt 0:
00:00]} 33. Rd3 {[%emt 0:04:30]} Qc8 {[%emt 0:02:13]} 34. Qxa7 {[%emt 0:01:53]}
Qxc4 {[%emt 0:00:42]} 35. Rd2 {[%emt 0:01:11]} R5e6 {[%emt 0:02:36]} 36. Qb7 {
[%emt 0:01:27]} Qc8 {[%emt 0:00:46]} 37. Qd5 {[%emt 0:00:22]} Rf8 {[%emt 0:00:
00]} 38. a4 {[%emt 0:00:40]} h6 {[%emt 0:00:10]} 39. b4 {[%emt 0:00:46]} Qc6 {
[%emt 0:00:15]} 40. Qb3 {[%emt 0:00:18]} Kh8 {[%emt 0:00:37]} 41. b5 {[%emt 0:
00:00]} Qc7 {[%emt 0:30:35]} 42. Qd5 {[%emt 0:30:37]} Kg8 {[%emt 0:00:48]} 43.
Qb3 {[%emt 0:00:44]} Rd8 {[%emt 0:00:15]} 44. Rc2 {[%emt 0:00:31]} Qe7 {
[%emt 0:00:00]} 45. Qc4 {[%emt 0:00:00]} Kh8 {[%emt 0:00:00]} 46. Rf2 {[%emt 0:
00:00]} f5 {[%emt 0:00:00]} 47. Nd2 {[%emt 0:00:00]} Re1 {[%emt 0:00:00]} 48.
Nf1 {[%emt 0:00:00]} Re8 {[%emt 0:00:00]} 49. Qd4 {[%emt 0:00:00]} Qe6 {
[%emt 0:00:00]} 50. Nd2 {[%emt 0:00:00]} Re2 {[%emt 0:00:00]} 51. f4 {[%emt 0:
00:00]} Rxf2+ {[%emt 0:00:00]} 52. Qxf2 {[%emt 0:00:00]} Qa2 {[%emt 0:00:00]}
53. Kg1 {[%emt 0:00:00]} Rd8 {[%emt 0:00:00]} 54. Nf1 {[%emt 0:00:00]} Qxf2+ {
[%emt 0:00:00]} 55. Kxf2 {[%emt 0:00:00]} Rd4 {[%emt 0:00:00]} 56. Ne3 {
[%emt 0:00:06]} g6 {[%emt 0:00:00]} 57. h5 {[%emt 0:02:09]} Kg7 {[%emt 0:00:00]
} 58. hxg6 {[%emt 0:00:55]} Kxg6 {[%emt 0:00:00]} 59. Kf3 {[%emt 0:00:05]} h5 {
[%emt 0:00:00]} 60. Kg2 {[%emt 0:00:36]} Kf6 {[%emt 0:00:00]} 61. Kh3 {[%emt 0:
00:00]} Ke6 {[%emt 0:00:00]} 62. Kh4 {[%emt 0:00:27]} Rxa4 {[%emt 0:00:00]} 63.
Kxh5 {[%emt 0:00:23]} Rb4 {[%emt 0:00:00]} 64. Nc2 {[%emt 0:01:18]} Rc4 {
[%emt 0:00:00]} 65. Ne1 {[%emt 0:01:06]} Rc3 {[%emt 0:00:00]} 66. g4 {[%emt 0:
00:00]} Rh3+ {[%emt 0:00:00]} 0-1

[Event "44th Chess Olympiad Open 2022"]
[Site "Chennai"]
[Date "2022.08.02"]
[Round "5.35"]
[White "Kassis, Antoine"]
[Black "Egilstoft, Rogvi"]
[Result "1/2-1/2"]
[WhiteElo "2202"]
[BlackElo "2284"]
[Annotator "NA RC"]
[PlyCount "72"]
[EventDate "2022.??.??"]
[TimeControl "60"]

1. e4 {[%emt 0:00:04]} e5 {[%emt 0:00:09]} 2. Nf3 {[%emt 0:00:11]} Nc6 {
[%emt 0:00:14]} 3. Nc3 {[%emt 0:00:09]} Nf6 {[%emt 0:08:01]} 4. d4 {[%emt 0:00:
00]} exd4 {[%emt 0:01:13]} 5. Nxd4 {[%emt 0:00:07]} Bb4 {[%emt 0:02:30]} 6.
Nxc6 {[%emt 0:00:46]} bxc6 {[%emt 0:00:17]} 7. Bd3 {[%emt 0:00:35]} O-O {
[%emt 0:06:49]} 8. O-O {[%emt 0:00:25]} Re8 {[%emt 0:02:26]} 9. Bg5 {[%emt 0:
00:00]} h6 {[%emt 0:04:23]} 10. Bh4 {[%emt 0:02:39]} d5 {[%emt 0:12:42]} 11.
exd5 {[%emt 0:02:32]} Bxc3 {[%emt 0:04:00]} 12. bxc3 {[%emt 0:00:06]} cxd5 {
[%emt 0:01:38]} 13. h3 {[%emt 0:12:04]} Qd6 {[%emt 0:07:13]} 14. c4 {[%emt 0:
00:00]} dxc4 {[%emt 0:08:08]} 15. Bxc4 {[%emt 0:01:41]} Qf4 {[%emt 0:00:17]}
16. Bxf6 {[%emt 0:00:15]} Qxf6 {[%emt 0:01:02]} 17. Bd3 {[%emt 0:02:05]} Rb8 {
[%emt 0:06:47]} 18. Qd2 {[%emt 0:07:45]} c5 {[%emt 0:02:32]} 19. Qa5 {[%emt 0:
00:00]} Qg5 {[%emt 0:13:25]} 20. f4 {[%emt 0:01:37]} Qd5 {[%emt 0:01:36]} 21.
Rad1 {[%emt 0:05:17]} Qc6 {[%emt 0:00:16]} 22. Bc4 {[%emt 0:01:34]} Bxh3 {
[%emt 0:06:27]} 23. Bd5 {[%emt 0:03:28]} Qg6 {[%emt 0:00:06]} 24. Qxa7 {
[%emt 0:03:08]} Bf5 {[%emt 0:00:12]} 25. Qxc5 {[%emt 0:01:26]} Rbc8 {[%emt 0:
00:00]} 26. Qf2 {[%emt 0:00:23]} Rxc2 {[%emt 0:01:29]} 27. Rd2 {[%emt 0:00:07]}
Rxd2 {[%emt 0:01:05]} 28. Qxd2 {[%emt 0:00:01]} Qb6+ {[%emt 0:00:05]} 29. Qf2 {
[%emt 0:00:30]} Qa5 {[%emt 0:00:39]} 30. Bb3 {[%emt 0:00:55]} Re7 {[%emt 0:00:
00]} 31. Qd4 {[%emt 0:01:16]} Kh7 {[%emt 0:00:26]} 32. Qf2 {[%emt 0:01:57]} Qc3
{[%emt 0:00:34]} 33. Qf3 {[%emt 0:00:30]} Re3 {[%emt 0:00:44]} 34. Qf2 {
[%emt 0:00:18]} Be4 {[%emt 0:02:23]} 35. Kh2 {[%emt 0:00:40]} f5 {[%emt 0:00:
00]} 36. Rd1 {[%emt 0:00:31]} Rd3 {[%emt 0:00:33]} 1/2-1/2

[Event "44th Chess Olympiad Open 2022"]
[Site "Chennai"]
[Date "2022.08.02"]
[Round "5.35"]
[White "Kett, Tim"]
[Black "Lazov, Toni"]
[Result "1/2-1/2"]
[WhiteElo "2197"]
[BlackElo "2374"]
[Annotator "RC"]
[PlyCount "62"]
[EventDate "2022.??.??"]
[TimeControl "60"]

1. e4 {[%emt 0:00:05]} c5 {[%emt 0:00:06]} 2. Nf3 {[%emt 0:00:11]} d6 {[%emt 0:
00:00]} 3. d4 {[%emt 0:00:07]} cxd4 {[%emt 0:00:04]} 4. Nxd4 {[%emt 0:00:05]}
Nf6 {[%emt 0:00:05]} 5. Nc3 {[%emt 0:00:06]} a6 {[%emt 0:00:19]} 6. Bc4 {
[%emt 0:00:13]} e6 {[%emt 0:00:24]} 7. O-O {[%emt 0:00:15]} Be7 {[%emt 0:00:19]
} 8. f4 {[%emt 0:00:12]} O-O {[%emt 0:01:15]} 9. f5 {[%emt 0:00:40]} b5 {
[%emt 0:16:29]} 10. Bb3 {[%emt 0:00:52]} b4 {[%emt 0:10:37]} 11. Na4 {[%emt 0:
00:00]} e5 {[%emt 0:01:51]} 12. Ne2 {[%emt 0:00:12]} Bb7 {[%emt 0:02:46]} 13.
Ng3 {[%emt 0:00:38]} Nbd7 {[%emt 0:18:18]} 14. Qe2 {[%emt 0:02:19]} Bc6 {
[%emt 0:06:38]} 15. Re1 {[%emt 0:09:33]} Qa5 {[%emt 0:03:27]} 16. a3 {[%emt 0:
00:00]} bxa3 {[%emt 0:00:24]} 17. Nc3 {[%emt 0:12:02]} d5 {[%emt 0:08:39]} 18.
exd5 {[%emt 0:03:33]} Nxd5 {[%emt 0:00:02]} 19. Nxd5 {[%emt 0:03:10]} Bxd5 {
[%emt 0:00:02]} 20. bxa3 {[%emt 0:01:10]} Nf6 {[%emt 0:11:08]} 21. Bb2 {
[%emt 0:05:53]} Rfe8 {[%emt 0:00:41]} 22. Kh1 {[%emt 0:09:45]} Bf8 {[%emt 0:00:
00]} 23. Rad1 {[%emt 0:07:33]} Rab8 {[%emt 0:02:33]} 24. Rd3 {[%emt 0:04:57]}
Bxb3 {[%emt 0:05:00]} 25. cxb3 {[%emt 0:01:11]} e4 {[%emt 0:01:46]} 26. Re3 {
[%emt 0:02:06]} Nd5 {[%emt 0:00:27]} 27. b4 {[%emt 0:02:19]} Qb5 {[%emt 0:00:
00]} 28. Qxb5 {[%emt 0:04:20]} Rxb5 {[%emt 0:00:19]} 29. Rxe4 {[%emt 0:00:23]}
Rxe4 {[%emt 0:00:01]} 30. Nxe4 {[%emt 0:02:10]} a5 {[%emt 0:00:46]} 31. Nc3 {
[%emt 0:04:27]} Nxc3 {[%emt 0:00:06]} 1/2-1/2

[Event "44th Chess Olympiad Open 2022"]
[Site "Chennai"]
[Date "2022.08.02"]
[Round "5.35"]
[White "Kaloust, Giorgio"]
[Black "Ziska, Helgi Dam"]
[Result "0-1"]
[WhiteElo "1942"]
[BlackElo "2549"]
[Annotator "TA"]
[PlyCount "76"]
[EventDate "2022.??.??"]
[TimeControl "60"]

{[%evp 15,76,2,16,-18,-31,-35,-31,-46,-55,-72,-61,-68,-62,-94,0,-62,-53,-57,
-59,-55,-60,-88,-84,-127,-113,-139,-142,-240,-238,-169,-128,-106,-114,-113,-78,
-74,-75,-78,-67,-67,-31,-83,-81,-93,-87,-159,-108,-101,-76,-94,-81,-89,-86,
-227,-227,-219,-242,-897,-898,-938,-935,-852,-831]} 1. d4 {[%emt 0:00:03]} g6 {
[%emt 0:00:21]} 2. Nf3 {[%emt 0:00:30]} Bg7 {[%emt 0:00:25]} 3. c4 {[%emt 0:00:
00]} Nf6 {[%emt 0:01:21]} 4. g3 {[%emt 0:00:22]} O-O {[%emt 0:00:43]} 5. Bg2 {
[%emt 0:00:13]} d6 {[%emt 0:01:19]} 6. O-O {[%emt 0:00:28]} Nbd7 {[%emt 0:00:
00]} 7. Nc3 {[%emt 0:01:14]} e5 {[%emt 0:00:11]} 8. d5 {[%emt 0:01:46]} a5 {
[%emt 0:02:28][%cal Ya7a5,Ya5a4]} 9. a3 {[%emt 0:08:13] E67: King's Indian:
Fianchetto: 6...Nbd7.} Nb6 {[%emt 0:13:57] [#]} 10. Qd3 $146 {[%emt 0:00:00]} (
{Predecessor:} 10. b3 a4 11. Be3 Nfd7 12. Nd2 axb3 13. Qxb3 Nc5 14. Bxc5 dxc5
15. Nde4 Nd7 16. Qb5 b6 {0-1 (41) Gudmundsson,J-De Groot,A Buenos Aires 1939})
10... Nfd7 {[%emt 0:02:08][%cal Yf6d7,Yd7c5,Yc5b3]} 11. e4 {[%emt 0:07:07]
Black is slightly better.} Nc5 {[%emt 0:04:30]} 12. Qc2 {[%emt 0:06:26]} a4 {
[%emt 0:16:47]} 13. Be3 {[%emt 0:04:17]} Nb3 {[%emt 0:00:00]} ({Don't do} 13...
Nxc4 14. Bxc5 dxc5 15. Nxa4 $11) 14. Rae1 {[%emt 0:00:00][%cal Yc3a4]} Bd7 {
[%emt 0:08:25]} (14... Nxc4 $17 15. Nxa4 Nxe3 16. fxe3 Rxa4 17. Qxb3 Rxe4) 15.
Bxb6 {[%emt 0:06:40]} (15. Qd3 $11) 15... cxb6 $15 {[%emt 0:00:07]} 16. Nd2 $1
{[%emt 0:06:10]} Nd4 $36 {[%emt 0:03:08] White is under pressure.} 17. Qd3 {
[%emt 0:05:33]} Rc8 {[%emt 0:01:03]} 18. Ne2 {[%emt 0:08:28]} Nxe2+ {[%emt 0:
00:46]} 19. Qxe2 {[%emt 0:00:30]} Bh6 {[%emt 0:00:00][%cal Yb6b5]} 20. Rc1 {
[%emt 0:02:54] [#]} b5 $1 {[%emt 0:01:09]} 21. cxb5 {[%emt 0:04:31]} (21. c5
$17) 21... Qa5 $19 {[%emt 0:01:33][%csl Yb5,Yd2]} 22. Nc4 {[%emt 0:02:34]} Qxb5
{[%emt 0:00:41] White must now prevent ... Qa6.} 23. Rc3 {[%emt 0:01:17]} Qa6 {
[%emt 0:01:16] Hoping for ...Bb5.} 24. Rb1 {[%emt 0:04:54]} b5 {[%emt 0:11:43]}
25. Ne3 {[%emt 0:02:12]} Rxc3 {[%emt 0:00:00]} 26. bxc3 {[%emt 0:00:06]} Rc8 {
[%emt 0:00:37][%cal Yf8c8,Yc8c5,Yc5c3,Yc3b3]} 27. Nd1 {[%emt 0:02:26]} Qa7 {
[%emt 0:01:40]} 28. Rb4 {[%emt 0:02:35]} (28. Bf1 $15) 28... Bg5 {[%emt 0:01:
57]} 29. Bf1 {[%emt 0:00:00]} Bd8 {[%emt 0:00:32] Black is more active.} 30.
Qd2 {[%emt 0:03:49] [#]} (30. Rb1 $142) 30... Ba5 {[%emt 0:07:10]} (30... Qc5
$142 $1 31. Rb1 Ba5) 31. Rb1 $17 {[%emt 0:00:08]} Rc5 {[%emt 0:00:34]} 32. Be2
{[%emt 0:00:50]} Kg7 {[%emt 0:00:49]} 33. Kg2 {[%emt 0:00:17]} Qc7 {[%emt 0:00:
28][%cal Ra5c3]} 34. Qb2 {[%emt 0:00:49] White does not recover from this.} (
34. Rc1 $17) 34... Bxc3 $19 {[%emt 0:01:03]} 35. Nxc3 {[%emt 0:00:07]} Rxc3 {
[%emt 0:00:04]} 36. Bxb5 $2 {[%emt 0:00:36]} (36. Qb4) 36... Rb3 {[%emt 0:00:
13] Black is clearly winning.} 37. Qc1 {[%emt 0:00:50]} Qxc1 {[%emt 0:00:09]}
38. Rxc1 {[%emt 0:00:00]} Bxb5 {[%emt 0:00:09] Weighted Error Value: White=0.
50/Black=0.13 (very precise)} 0-1

[Event "44th Chess Olympiad Open 2022"]
[Site "Chennai"]
[Date "2022.08.02"]
[Round "5.36"]
[White "Risteski, Emil"]
[Black "Blackburn, Jonathan L B"]
[Result "1/2-1/2"]
[WhiteElo "2405"]
[BlackElo "2176"]
[Annotator "RC"]
[PlyCount "80"]
[EventDate "2022.??.??"]
[TimeControl "60"]

1. e4 {[%emt 0:00:15]} e6 {[%emt 0:00:03]} 2. d4 {[%emt 0:00:04]} d5 {[%emt 0:
00:00]} 3. Nd2 {[%emt 0:00:08]} c5 {[%emt 0:00:10]} 4. exd5 {[%emt 0:00:24]}
exd5 {[%emt 0:00:10]} 5. Ngf3 {[%emt 0:01:28]} Nc6 {[%emt 0:00:11]} 6. Bb5 {
[%emt 0:00:19]} Qe7+ {[%emt 0:00:11]} 7. Be2 {[%emt 0:00:53]} Qc7 {[%emt 0:00:
00]} 8. O-O {[%emt 0:00:39]} Nf6 {[%emt 0:00:31]} 9. Re1 {[%emt 0:00:47]} cxd4
{[%emt 0:01:55]} 10. Bb5+ {[%emt 0:08:49]} Be7 {[%emt 0:00:32]} 11. Qe2 {
[%emt 0:01:29]} a6 {[%emt 0:00:47]} 12. Bxc6+ {[%emt 0:01:06]} bxc6 {[%emt 0:
00:00]} 13. Nxd4 {[%emt 0:02:52]} Ra7 {[%emt 0:00:42]} 14. c4 {[%emt 0:06:10]}
c5 {[%emt 0:06:07]} 15. N4f3 {[%emt 0:01:32]} d4 {[%emt 0:07:18]} 16. Ne4 {
[%emt 0:01:48]} O-O {[%emt 0:08:29]} 17. Bg5 {[%emt 0:03:16]} Nxe4 {[%emt 0:00:
00]} 18. Bxe7 {[%emt 0:02:03]} Qxe7 {[%emt 0:01:12]} 19. Qxe4 {[%emt 0:00:09]}
Qxe4 {[%emt 0:01:37]} 20. Rxe4 {[%emt 0:00:06]} f6 {[%emt 0:01:55]} 21. Rae1 {
[%emt 0:11:35]} Bf5 {[%emt 0:11:08]} 22. Re7 {[%emt 0:00:58]} Rxe7 {[%emt 0:00:
00]} 23. Rxe7 {[%emt 0:00:03]} Rf7 {[%emt 0:00:32]} 24. Re8+ {[%emt 0:01:11]}
Rf8 {[%emt 0:00:02]} 25. Rxf8+ {[%emt 0:08:20]} Kxf8 {[%emt 0:03:00]} 26. Nd2 {
[%emt 0:03:25]} Ke7 {[%emt 0:03:24]} 27. f4 {[%emt 0:03:51]} Bd3 {[%emt 0:00:
00]} 28. Kf2 {[%emt 0:00:31]} a5 {[%emt 0:02:03]} 29. Kf3 {[%emt 0:10:22]} f5 {
[%emt 0:02:53]} 30. Kf2 {[%emt 0:02:22]} g6 {[%emt 0:01:19]} 31. Ke1 {[%emt 0:
00:00]} a4 {[%emt 0:03:33]} 32. a3 {[%emt 0:02:39]} Kd6 {[%emt 0:01:56]} 33.
Kf2 {[%emt 0:02:54]} Ke7 {[%emt 0:04:10]} 34. Kg3 {[%emt 0:00:21]} Kf6 {
[%emt 0:04:11]} 35. Kf3 {[%emt 0:06:03]} Ke7 {[%emt 0:01:57]} 36. Kf2 {[%emt 0:
00:00]} Kd6 {[%emt 0:00:39]} 37. Kg3 {[%emt 0:00:52]} Ke7 {[%emt 0:00:04]} 38.
Kf2 {[%emt 0:05:31]} Kd6 {[%emt 0:00:09]} 39. Ke1 {[%emt 0:00:04]} Ke7 {
[%emt 0:02:20]} 40. Kd1 {[%emt 0:00:21]} Kd6 {[%emt 0:00:46]} 1/2-1/2